[Event "Early-Titled-Tuesday-Blitz-August-29-2023"]
[Site "Chess.com"]
[Date "2023.08.29"]
[Round "6"]
[White "Rud_Makarian"]
[Black "Dedic8"]
[Result "1-0"]
[WhiteElo "3024"]
[BlackElo "2839"]
[TimeControl "180+1"]
[EndTime "9:06:02 PDT"]
[Termination "Rud_Makarian won by resignation"]

1. d4 {[%clk 0:03:00.9]} 1... Nf6 {[%clk 0:03:00.6]} 2. c4 {[%clk 0:03:01.2]}
2... e6 {[%clk 0:03:01.3]} 3. Nf3 {[%clk 0:03:01.8]} 3... d5 {[%clk 0:03:02.1]}
4. g3 {[%clk 0:03:02.6]} 4... Bb4+ {[%clk 0:03:02.7]} 5. Bd2 {[%clk 0:03:02.3]}
5... Be7 {[%clk 0:03:03.4]} 6. Qc2 {[%clk 0:03:02.7]} 6... O-O {[%clk
0:03:03.3]} 7. Bg2 {[%clk 0:03:03.4]} 7... c6 {[%clk 0:03:01.8]} 8. O-O {[%clk
0:03:04]} 8... b6 {[%clk 0:03:01]} 9. Bf4 {[%clk 0:03:04.5]} 9... Bb7 {[%clk
0:03:00.8]} 10. Nbd2 {[%clk 0:03:04.3]} 10... Nh5 {[%clk 0:03:01.2]} 11. e3
{[%clk 0:03:01.3]} 11... Nd7 {[%clk 0:03:00]} 12. cxd5 {[%clk 0:03:01.4]} 12...
exd5 {[%clk 0:02:59.2]} 13. h4 {[%clk 0:02:58]} 13... Nxf4 {[%clk 0:02:59.2]}
14. exf4 {[%clk 0:02:58.9]} 14... c5 {[%clk 0:02:59.7]} 15. Nb1 {[%clk 0:02:58]}
15... Bf6 {[%clk 0:02:59.9]} 16. Rd1 {[%clk 0:02:55.9]} 16... cxd4 {[%clk
0:02:58.2]} 17. Nxd4 {[%clk 0:02:56.8]} 17... Nc5 {[%clk 0:02:58.4]} 18. Nc3
{[%clk 0:02:56.4]} 18... Rc8 {[%clk 0:02:57.8]} 19. Qd2 {[%clk 0:02:48.8]} 19...
Re8 {[%clk 0:02:44.3]} 20. Rac1 {[%clk 0:02:38.3]} 20... a6 {[%clk 0:02:26.9]}
21. Nf5 {[%clk 0:01:55.3]} 21... Bxc3 {[%clk 0:01:42.7]} 22. Qxc3 {[%clk
0:01:47.7]} 22... Ne6 {[%clk 0:01:41.2]} 23. Qa3 {[%clk 0:01:40.4]} 23... Rxc1
{[%clk 0:01:07.9]} 24. Rxc1 {[%clk 0:01:41.3]} 24... Nc5 {[%clk 0:01:07]} 25.
Qc3 {[%clk 0:01:31]} 25... Ne6 {[%clk 0:00:54.6]} 26. Qe5 {[%clk 0:01:06.8]}
26... Ba8 {[%clk 0:00:44.2]} 27. h5 {[%clk 0:00:51.8]} 27... h6 {[%clk
0:00:42.3]} 28. Qd6 {[%clk 0:00:46.8]} 28... Qf6 {[%clk 0:00:33.4]} 29. Qd7
{[%clk 0:00:38.8]} 29... Rf8 {[%clk 0:00:14.2]} 30. Ne7+ {[%clk 0:00:38.4]}
30... Kh8 {[%clk 0:00:14.7]} 31. Rc8 {[%clk 0:00:36.9]} 31... Qxe7 {[%clk
0:00:05.8]} 32. Qxe7 {[%clk 0:00:34.4]} 32... Rxc8 {[%clk 0:00:06.4]} 33. Qxf7
{[%clk 0:00:34.1]} 33... Nc5 {[%clk 0:00:02.7]} 34. Bxd5 {[%clk 0:00:28.3]} 1-0

[Event "Early-Titled-Tuesday-Blitz-August-29-2023"]
[Site "Chess.com"]
[Date "2023.08.29"]
[Round "6"]
[White "Beltraxtor"]
[Black "jcibarra"]
[Result "0-1"]
[WhiteElo "2650"]
[BlackElo "2884"]
[TimeControl "180+1"]
[EndTime "9:06:02 PDT"]
[Termination "jcibarra won on time"]

1. e4 {[%clk 0:03:00.9]} 1... c5 {[%clk 0:02:59.8]} 2. Nf3 {[%clk 0:03:00.4]}
2... e6 {[%clk 0:02:59]} 3. c3 {[%clk 0:02:54.5]} 3... Nf6 {[%clk 0:02:58.1]} 4.
e5 {[%clk 0:02:53.2]} 4... Nd5 {[%clk 0:02:58.2]} 5. d4 {[%clk 0:02:53.4]} 5...
cxd4 {[%clk 0:02:59.1]} 6. cxd4 {[%clk 0:02:53.6]} 6... d6 {[%clk 0:02:59.8]} 7.
Bc4 {[%clk 0:02:52.8]} 7... Be7 {[%clk 0:02:58.8]} 8. O-O {[%clk 0:02:52.6]}
8... O-O {[%clk 0:02:58.8]} 9. Qe2 {[%clk 0:02:53.1]} 9... Nc6 {[%clk
0:02:58.9]} 10. Qe4 {[%clk 0:02:52.5]} 10... Bd7 {[%clk 0:02:54.9]} 11. a3
{[%clk 0:02:47.5]} 11... Rc8 {[%clk 0:02:34.5]} 12. Bd3 {[%clk 0:02:37.8]} 12...
f5 {[%clk 0:02:33.7]} 13. exf6 {[%clk 0:02:37.1]} 13... Nxf6 {[%clk 0:02:34.3]}
14. Qe2 {[%clk 0:02:35.8]} 14... Qe8 {[%clk 0:02:31]} 15. Nc3 {[%clk 0:02:26.3]}
15... d5 {[%clk 0:02:25.7]} 16. Re1 {[%clk 0:02:13.8]} 16... Bd6 {[%clk
0:02:22.6]} 17. Nb5 {[%clk 0:01:49.6]} 17... Bb8 {[%clk 0:02:21.9]} 18. Ne5
{[%clk 0:01:49.5]} 18... a6 {[%clk 0:02:18.5]} 19. Nxc6 {[%clk 0:01:48.5]} 19...
bxc6 {[%clk 0:02:07.4]} 20. Nc3 {[%clk 0:01:48.4]} 20... a5 {[%clk 0:02:05.4]}
21. Na4 {[%clk 0:01:45.3]} 21... e5 {[%clk 0:01:55.6]} 22. dxe5 {[%clk
0:01:40.7]} 22... Ng4 {[%clk 0:01:34.5]} 23. e6 {[%clk 0:00:22.8]} 23... Bxh2+
{[%clk 0:01:33.3]} 24. Kf1 {[%clk 0:00:20.6]} 24... Nxf2 {[%clk 0:01:01]} 25.
Qxf2 {[%clk 0:00:13.7]} 25... Bg3 {[%clk 0:00:55.3]} 26. Be3 {[%clk 0:00:04.2]}
26... Bxf2 {[%clk 0:00:43.6]} 27. Bxf2 {[%clk 0:00:05.1]} 27... Bxe6 {[%clk
0:00:42.5]} 28. Nc5 {[%clk 0:00:02.9]} 28... Qf7 {[%clk 0:00:43]} 29. Re2 {[%clk
0:00:02.6]} 29... Bf5 {[%clk 0:00:43.4]} 30. Rae1 {[%clk 0:00:01.5]} 30... Bxd3
{[%clk 0:00:42.4]} 31. Nxd3 {[%clk 0:00:02.4]} 31... Rce8 {[%clk 0:00:42.6]} 32.
Rxe8 {[%clk 0:00:02.6]} 32... Rxe8 {[%clk 0:00:42.8]} 33. Rc1 {[%clk 0:00:03.5]}
33... Qf5 {[%clk 0:00:39.7]} 34. Rc3 {[%clk 0:00:03.5]} 34... Re3 {[%clk
0:00:37.6]} 35. Nc5 {[%clk 0:00:01.1]} 35... Qb1+ {[%clk 0:00:35.9]} 0-1

[Event "Early-Titled-Tuesday-Blitz-August-29-2023"]
[Site "Chess.com"]
[Date "2023.08.29"]
[Round "6"]
[White "baki83"]
[Black "Actuary44"]
[Result "1-0"]
[WhiteElo "2842"]
[BlackElo "2513"]
[TimeControl "180+1"]
[EndTime "9:06:03 PDT"]
[Termination "baki83 won by resignation"]

1. e4 {[%clk 0:03:00.9]} 1... c5 {[%clk 0:02:59.7]} 2. Nf3 {[%clk 0:03:00.8]}
2... d6 {[%clk 0:03:00.3]} 3. c3 {[%clk 0:02:59.5]} 3... Nf6 {[%clk 0:02:59.9]}
4. Be2 {[%clk 0:02:59.6]} 4... g6 {[%clk 0:03:00.4]} 5. O-O {[%clk 0:02:59.4]}
5... Bg7 {[%clk 0:03:00.8]} 6. Re1 {[%clk 0:02:59.6]} 6... O-O {[%clk
0:03:00.6]} 7. Bf1 {[%clk 0:02:59.8]} 7... e5 {[%clk 0:03:00.2]} 8. d4 {[%clk
0:02:59.4]} 8... cxd4 {[%clk 0:03:00.5]} 9. cxd4 {[%clk 0:02:59.4]} 9... Nc6
{[%clk 0:03:01.2]} 10. d5 {[%clk 0:02:58.8]} 10... Ne7 {[%clk 0:03:00.9]} 11. h3
{[%clk 0:02:58.9]} 11... Ne8 {[%clk 0:03:00.5]} 12. Nc3 {[%clk 0:02:58.9]} 12...
f5 {[%clk 0:03:00.7]} 13. Ng5 {[%clk 0:02:58.5]} 13... f4 {[%clk 0:02:56.7]} 14.
Ne6 {[%clk 0:02:57.3]} 14... Bxe6 {[%clk 0:02:56.1]} 15. dxe6 {[%clk 0:02:57.6]}
15... Nc7 {[%clk 0:02:47.9]} 16. Bc4 {[%clk 0:02:57.2]} 16... Kh8 {[%clk
0:02:43.6]} 17. b3 {[%clk 0:02:53.5]} 17... a6 {[%clk 0:02:29.5]} 18. a4 {[%clk
0:02:40.9]} 18... Nc6 {[%clk 0:02:27.3]} 19. Ba3 {[%clk 0:02:40]} 19... Nd4
{[%clk 0:02:26.7]} 20. Ne2 {[%clk 0:02:37.5]} 20... Ncxe6 {[%clk 0:02:15.8]} 21.
Bxe6 {[%clk 0:02:35.9]} 21... Nxe6 {[%clk 0:02:16.7]} 22. Bxd6 {[%clk 0:02:35]}
22... Re8 {[%clk 0:02:09.2]} 23. Qd5 {[%clk 0:02:29.3]} 23... f3 {[%clk
0:02:05.9]} 24. gxf3 {[%clk 0:02:06.2]} 24... Qg5+ {[%clk 0:02:03.3]} 25. Kf1
{[%clk 0:02:01.3]} 25... Rad8 {[%clk 0:01:59.6]} 26. Red1 {[%clk 0:02:00.3]}
26... Qh4 {[%clk 0:01:56.2]} 27. Ng1 {[%clk 0:01:52.4]} 27... Bf8 {[%clk
0:01:40.8]} 28. Bxe5+ {[%clk 0:01:37.3]} 28... Kg8 {[%clk 0:01:39.8]} 29. Qc4
{[%clk 0:01:36.9]} 29... Rc8 {[%clk 0:01:33.6]} 30. Bg3 {[%clk 0:01:14.7]} 30...
Qh5 {[%clk 0:01:12.7]} 31. Qd5 {[%clk 0:01:13.1]} 31... Qh6 {[%clk 0:01:06.8]}
32. Kg2 {[%clk 0:01:06.5]} 32... Rc2 {[%clk 0:00:56.3]} 33. Qd7 {[%clk
0:01:00.4]} 33... Re7 {[%clk 0:00:40.1]} 34. Qd3 {[%clk 0:00:59]} 34... Rb2
{[%clk 0:00:35.6]} 35. Qc4 {[%clk 0:00:52.6]} 35... Bg7 {[%clk 0:00:26.4]} 36.
Rd6 {[%clk 0:00:46.2]} 36... Kf7 {[%clk 0:00:22.1]} 37. Rad1 {[%clk 0:00:45.1]}
37... g5 {[%clk 0:00:16.8]} 38. R1d5 {[%clk 0:00:41.1]} 38... Kf8 {[%clk
0:00:08.9]} 39. Rf5+ {[%clk 0:00:39.5]} 39... Kg8 {[%clk 0:00:08.7]} 40. Rd8+
{[%clk 0:00:38.5]} 40... Bf8 {[%clk 0:00:07.1]} 41. Rdxf8+ {[%clk 0:00:38.3]}
1-0

[Event "Early-Titled-Tuesday-Blitz-August-29-2023"]
[Site "Chess.com"]
[Date "2023.08.29"]
[Round "6"]
[White "biostatistician"]
[Black "Haykoooo0o"]
[Result "1-0"]
[WhiteElo "2583"]
[BlackElo "2431"]
[TimeControl "180+1"]
[EndTime "9:06:06 PDT"]
[Termination "biostatistician won by resignation"]

1. d4 {[%clk 0:03:00.6]} 1... Nf6 {[%clk 0:02:56.8]} 2. Nf3 {[%clk 0:03:00.8]}
2... g6 {[%clk 0:02:51.4]} 3. c4 {[%clk 0:03:00.8]} 3... Bg7 {[%clk 0:02:50.8]}
4. Nc3 {[%clk 0:03:01.7]} 4... O-O {[%clk 0:02:51.2]} 5. e4 {[%clk 0:03:01.9]}
5... d6 {[%clk 0:02:51.8]} 6. Be2 {[%clk 0:03:02.8]} 6... e5 {[%clk 0:02:52.2]}
7. dxe5 {[%clk 0:03:03.7]} 7... dxe5 {[%clk 0:02:51.3]} 8. Qxd8 {[%clk
0:03:04.6]} 8... Rxd8 {[%clk 0:02:51.9]} 9. Bg5 {[%clk 0:03:05.5]} 9... Re8
{[%clk 0:02:34.5]} 10. Nd5 {[%clk 0:03:05.2]} 10... Nxd5 {[%clk 0:02:31.2]} 11.
cxd5 {[%clk 0:03:06.1]} 11... c6 {[%clk 0:02:32.1]} 12. Bc4 {[%clk 0:03:06.2]}
12... cxd5 {[%clk 0:02:30.9]} 13. Bxd5 {[%clk 0:03:07.1]} 13... Nc6 {[%clk
0:02:31.3]} 14. O-O-O {[%clk 0:03:06.7]} 14... Bg4 {[%clk 0:02:27.6]} 15. Kb1
{[%clk 0:03:05.6]} 15... Rac8 {[%clk 0:02:25.2]} 16. Rc1 {[%clk 0:03:04.7]}
16... Bxf3 {[%clk 0:02:20]} 17. gxf3 {[%clk 0:03:04]} 17... Nd4 {[%clk
0:02:20.9]} 18. Bxb7 {[%clk 0:03:01.3]} 18... Rxc1+ {[%clk 0:02:18.5]} 19. Rxc1
{[%clk 0:03:00.6]} 19... Nxf3 {[%clk 0:02:19.4]} 20. Be3 {[%clk 0:02:59.6]}
20... Nxh2 {[%clk 0:02:11.6]} 21. Bxa7 {[%clk 0:02:58.8]} 21... Re7 {[%clk
0:02:10.9]} 22. Rc8+ {[%clk 0:02:57]} 22... Bf8 {[%clk 0:02:10.2]} 23. Rb8
{[%clk 0:01:47.1]} 23... Rc7 {[%clk 0:01:57.2]} 24. Bb6 {[%clk 0:01:44.2]} 24...
Rd7 {[%clk 0:01:01.1]} 25. a4 {[%clk 0:01:40.2]} 25... Kg7 {[%clk 0:00:59.4]}
26. a5 {[%clk 0:01:39.7]} 26... Bd6 {[%clk 0:00:58.8]} 27. Rd8 {[%clk
0:01:28.4]} 27... Rxd8 {[%clk 0:00:52.8]} 28. Bxd8 {[%clk 0:01:29.3]} 28... Ng4
{[%clk 0:00:46.1]} 29. f3 {[%clk 0:01:20.5]} 29... Nf6 {[%clk 0:00:43.7]} 30.
Bb6 {[%clk 0:01:16.2]} 30... Nd7 {[%clk 0:00:40.9]} 31. Bf2 {[%clk 0:01:11.2]}
31... Nb8 {[%clk 0:00:14.9]} 32. a6 {[%clk 0:01:08.4]} 32... Nxa6 {[%clk
0:00:15.2]} 33. Bxa6 {[%clk 0:01:09.3]} 33... h5 {[%clk 0:00:16.1]} 34. Kc2
{[%clk 0:01:06.9]} 34... g5 {[%clk 0:00:16.2]} 35. Kd3 {[%clk 0:01:04.7]} 35...
Kg6 {[%clk 0:00:15.4]} 36. Bc8 {[%clk 0:01:04.7]} 36... h4 {[%clk 0:00:13.6]}
37. Bg4 {[%clk 0:01:02.3]} 37... Kf6 {[%clk 0:00:12.6]} 38. Kc4 {[%clk
0:01:02.1]} 38... Bb8 {[%clk 0:00:09.8]} 39. Kd5 {[%clk 0:01:02.3]} 39... Bc7
{[%clk 0:00:08.8]} 40. b4 {[%clk 0:01:00.8]} 40... Ke7 {[%clk 0:00:08.9]} 41. b5
{[%clk 0:00:59.3]} 41... f6 {[%clk 0:00:09.4]} 42. Kc6 {[%clk 0:00:58.5]} 42...
Bb8 {[%clk 0:00:09.9]} 43. b6 {[%clk 0:00:58.7]} 43... Kd8 {[%clk 0:00:09.9]}
44. Bc5 {[%clk 0:00:57.2]} 44... Ke8 {[%clk 0:00:07.2]} 45. Kb7 {[%clk
0:00:56.9]} 1-0

[Event "Early-Titled-Tuesday-Blitz-August-29-2023"]
[Site "Chess.com"]
[Date "2023.08.29"]
[Round "6"]
[White "Irina_Barchuk"]
[Black "Laico"]
[Result "0-1"]
[WhiteElo "2263"]
[BlackElo "2440"]
[TimeControl "180+1"]
[EndTime "9:06:06 PDT"]
[Termination "Laico won by resignation"]

1. e4 {[%clk 0:02:59.4]} 1... e6 {[%clk 0:02:59.1]} 2. d4 {[%clk 0:02:58.6]}
2... d5 {[%clk 0:02:59.8]} 3. Nc3 {[%clk 0:02:59.2]} 3... Nf6 {[%clk 0:02:59.7]}
4. e5 {[%clk 0:02:59.5]} 4... Nfd7 {[%clk 0:03:00.2]} 5. f4 {[%clk 0:03:00.1]}
5... c5 {[%clk 0:03:00.9]} 6. Nf3 {[%clk 0:03:00.7]} 6... Nc6 {[%clk 0:03:01.6]}
7. Be3 {[%clk 0:03:00.5]} 7... cxd4 {[%clk 0:03:02.5]} 8. Nxd4 {[%clk
0:03:01.3]} 8... Bc5 {[%clk 0:03:02.6]} 9. Qd2 {[%clk 0:03:01.6]} 9... O-O
{[%clk 0:03:02.7]} 10. O-O-O {[%clk 0:03:01.3]} 10... a6 {[%clk 0:03:03.3]} 11.
h4 {[%clk 0:03:01.2]} 11... Nxd4 {[%clk 0:03:03.4]} 12. Bxd4 {[%clk 0:03:01.1]}
12... b5 {[%clk 0:03:04.3]} 13. h5 {[%clk 0:03:00.9]} 13... b4 {[%clk
0:03:04.5]} 14. Na4 {[%clk 0:03:01]} 14... Bxd4 {[%clk 0:03:04.5]} 15. Qxd4
{[%clk 0:03:01.9]} 15... Qa5 {[%clk 0:03:04.8]} 16. b3 {[%clk 0:03:01.9]} 16...
Bb7 {[%clk 0:03:05.4]} 17. h6 {[%clk 0:02:56.5]} 17... g6 {[%clk 0:03:02.6]} 18.
f5 {[%clk 0:02:50.1]} 18... Bc6 {[%clk 0:02:56.3]} 19. fxe6 {[%clk 0:02:42.4]}
19... fxe6 {[%clk 0:02:52.4]} 20. Qg4 {[%clk 0:02:41.1]} 20... Rae8 {[%clk
0:02:38.8]} 21. Bd3 {[%clk 0:02:39.4]} 21... Nxe5 {[%clk 0:02:38.8]} 22. Qd4
{[%clk 0:02:38.9]} 22... Nxd3+ {[%clk 0:02:34]} 23. Rxd3 {[%clk 0:02:39.8]}
23... e5 {[%clk 0:02:31.6]} 24. Qa7 {[%clk 0:02:34.1]} 24... Rf7 {[%clk
0:02:30.7]} 25. Qb6 {[%clk 0:02:19.9]} 25... Qxb6 {[%clk 0:02:12.5]} 26. Nxb6
{[%clk 0:02:20.8]} 26... d4 {[%clk 0:02:13.1]} 27. Nc4 {[%clk 0:02:15]} 27...
Bxg2 {[%clk 0:01:55.9]} 28. Re1 {[%clk 0:01:59.1]} 28... Rf1 {[%clk 0:01:55.7]}
29. Kd2 {[%clk 0:01:54.5]} 29... Rxe1 {[%clk 0:01:45.6]} 30. Kxe1 {[%clk
0:01:55.4]} 30... Bd5 {[%clk 0:01:36.3]} 31. Nb6 {[%clk 0:01:37.6]} 31... Bc6
{[%clk 0:01:05.3]} 32. Nc4 {[%clk 0:01:25.6]} 32... Bb5 {[%clk 0:01:03.6]} 33.
Kd2 {[%clk 0:01:19.9]} 33... Bxc4 {[%clk 0:00:59.8]} 34. bxc4 {[%clk 0:01:20.8]}
34... Rc8 {[%clk 0:00:58.8]} 35. a3 {[%clk 0:01:21.3]} 35... Rxc4 {[%clk
0:00:56.9]} 36. axb4 {[%clk 0:01:20.7]} 36... Rxb4 {[%clk 0:00:57.8]} 37. Ra3
{[%clk 0:01:21]} 37... Rb6 {[%clk 0:00:56.9]} 38. Kd3 {[%clk 0:01:21.2]} 38...
Rc6 {[%clk 0:00:53.5]} 39. Ra5 {[%clk 0:01:18.1]} 39... Re6 {[%clk 0:00:38]} 40.
Ke4 {[%clk 0:01:17.5]} 40... Kf7 {[%clk 0:00:29.4]} 41. Rc5 {[%clk 0:01:17.3]}
41... Kf6 {[%clk 0:00:20.7]} 42. Rc7 {[%clk 0:01:16.7]} 42... Re7 {[%clk
0:00:21.1]} 43. Rc6+ {[%clk 0:01:16.5]} 43... Kg5 {[%clk 0:00:21.1]} 44. Rxa6
{[%clk 0:01:16.1]} 44... Kxh6 {[%clk 0:00:21.4]} 45. Ra5 {[%clk 0:01:08.7]}
45... Kg5 {[%clk 0:00:20.4]} 46. Rxe5+ {[%clk 0:01:08]} 46... Rxe5+ {[%clk
0:00:21.3]} 47. Kxe5 {[%clk 0:01:08.8]} 47... h5 {[%clk 0:00:21.6]} 48. Kxd4
{[%clk 0:01:09.7]} 48... h4 {[%clk 0:00:14.5]} 49. Kd5 {[%clk 0:01:06]} 49... h3
{[%clk 0:00:13.7]} 50. Kd6 {[%clk 0:01:05.9]} 50... h2 {[%clk 0:00:14]} 51. c4
{[%clk 0:01:06.8]} 51... h1=Q {[%clk 0:00:14.1]} 52. c5 {[%clk 0:01:07.7]} 52...
Qb7 {[%clk 0:00:14]} 53. c6 {[%clk 0:01:07.6]} 53... Qc8 {[%clk 0:00:14.3]} 54.
c7 {[%clk 0:01:07.7]} 54... Kf6 {[%clk 0:00:15.2]} 55. Kc6 {[%clk 0:01:08.4]}
55... Ke6 {[%clk 0:00:15.5]} 56. Kb6 {[%clk 0:01:09.3]} 56... Kd6 {[%clk
0:00:16]} 57. Ka7 {[%clk 0:01:10.2]} 57... Qxc7+ {[%clk 0:00:16.1]} 58. Ka8
{[%clk 0:01:10.8]} 58... Qd7 {[%clk 0:00:14.2]} 0-1

[Event "Early-Titled-Tuesday-Blitz-August-29-2023"]
[Site "Chess.com"]
[Date "2023.08.29"]
[Round "6"]
[White "Kirill_Klukin"]
[Black "Sina_Movahed"]
[Result "0-1"]
[WhiteElo "2804"]
[BlackElo "2979"]
[TimeControl "180+1"]
[EndTime "9:06:07 PDT"]
[Termination "Sina_Movahed won on time"]

1. d4 {[%clk 0:03:00.9]} 1... Nf6 {[%clk 0:02:59.9]} 2. Nf3 {[%clk 0:03:00.3]}
2... g6 {[%clk 0:02:59.7]} 3. e3 {[%clk 0:02:58.5]} 3... Bg7 {[%clk 0:03:00]} 4.
Be2 {[%clk 0:02:59.1]} 4... O-O {[%clk 0:03:00.5]} 5. O-O {[%clk 0:02:59.8]}
5... d6 {[%clk 0:03:00.4]} 6. c4 {[%clk 0:02:58.8]} 6... Nbd7 {[%clk 0:03:00.5]}
7. Nc3 {[%clk 0:02:58.9]} 7... e5 {[%clk 0:03:01.4]} 8. Qc2 {[%clk 0:02:59.2]}
8... Re8 {[%clk 0:02:59.7]} 9. b4 {[%clk 0:02:58.3]} 9... exd4 {[%clk
0:02:59.6]} 10. Nxd4 {[%clk 0:02:56.1]} 10... a5 {[%clk 0:02:58.2]} 11. b5
{[%clk 0:02:56.4]} 11... Nc5 {[%clk 0:02:52.1]} 12. Rd1 {[%clk 0:02:56.2]} 12...
h5 {[%clk 0:02:52.2]} 13. h3 {[%clk 0:02:55.6]} 13... Nfe4 {[%clk 0:02:49]} 14.
Ba3 {[%clk 0:02:47.9]} 14... Nxc3 {[%clk 0:02:47.5]} 15. Qxc3 {[%clk 0:02:46.2]}
15... Ne4 {[%clk 0:02:48]} 16. Qc2 {[%clk 0:02:43.8]} 16... Bxh3 {[%clk
0:02:33.3]} 17. gxh3 {[%clk 0:02:09.8]} 17... Qg5+ {[%clk 0:02:32.2]} 18. Kf1
{[%clk 0:02:05.7]} 18... Nxf2 {[%clk 0:02:32.1]} 19. Kxf2 {[%clk 0:01:26.2]}
19... Qxe3+ {[%clk 0:02:31.5]} 20. Kf1 {[%clk 0:01:26.8]} 20... Bxd4 {[%clk
0:02:27.3]} 21. Rxd4 {[%clk 0:01:27]} 21... Qxd4 {[%clk 0:02:28.2]} 22. Bb2
{[%clk 0:01:27.5]} 22... Qf4+ {[%clk 0:02:26.8]} 23. Ke1 {[%clk 0:01:15.2]}
23... Re3 {[%clk 0:02:25.7]} 24. Bc1 {[%clk 0:01:11.7]} 24... Qg3+ {[%clk
0:02:22.6]} 25. Kd1 {[%clk 0:01:08.5]} 25... Re6 {[%clk 0:02:22.2]} 26. Qd3
{[%clk 0:01:01]} 26... Qg1+ {[%clk 0:02:16.3]} 27. Kc2 {[%clk 0:00:58.8]} 27...
Rae8 {[%clk 0:02:16.5]} 28. Bd1 {[%clk 0:00:55.8]} 28... Qg2+ {[%clk 0:02:06.5]}
29. Kb3 {[%clk 0:00:49.1]} 29... Qf2 {[%clk 0:02:01.1]} 30. Ka4 {[%clk
0:00:47.1]} 30... Qc5 {[%clk 0:01:57.3]} 31. Ba3 {[%clk 0:00:45]} 31... Qf2
{[%clk 0:01:46]} 32. Bb3 {[%clk 0:00:40.5]} 32... Re4 {[%clk 0:01:36.9]} 33. Rf1
{[%clk 0:00:36.4]} 33... Qh4 {[%clk 0:01:30.2]} 34. Qd5 {[%clk 0:00:34.1]} 34...
R8e6 {[%clk 0:01:24.7]} 35. Bb2 {[%clk 0:00:32.6]} 35... Qxh3 {[%clk 0:01:19.9]}
36. Rf6 {[%clk 0:00:16.2]} 36... Qg2 {[%clk 0:00:57.9]} 37. Rxe6 {[%clk
0:00:13.5]} 37... fxe6 {[%clk 0:00:58.5]} 38. Qd3 {[%clk 0:00:05.2]} 38... h4
{[%clk 0:00:49.1]} 39. Qc3 {[%clk 0:00:05.6]} 39... e5 {[%clk 0:00:48.4]} 40.
Kxa5 {[%clk 0:00:05.4]} 40... b6+ {[%clk 0:00:48.5]} 41. Ka6 {[%clk 0:00:03.2]}
41... Re3 {[%clk 0:00:46.9]} 0-1

[Event "Early-Titled-Tuesday-Blitz-August-29-2023"]
[Site "Chess.com"]
[Date "2023.08.29"]
[Round "6"]
[White "albi1999"]
[Black "koncheto"]
[Result "1-0"]
[WhiteElo "2682"]
[BlackElo "2522"]
[TimeControl "180+1"]
[EndTime "9:06:07 PDT"]
[Termination "albi1999 won on time"]

1. c4 {[%clk 0:02:58.1]} 1... Nf6 {[%clk 0:03:00.1]} 2. Nc3 {[%clk 0:02:57.9]}
2... e6 {[%clk 0:02:59.4]} 3. e4 {[%clk 0:02:58.1]} 3... d5 {[%clk 0:02:58.4]}
4. e5 {[%clk 0:02:57.4]} 4... d4 {[%clk 0:02:58.9]} 5. exf6 {[%clk 0:02:57.2]}
5... dxc3 {[%clk 0:02:59.8]} 6. bxc3 {[%clk 0:02:56.7]} 6... Qxf6 {[%clk
0:02:59.7]} 7. d4 {[%clk 0:02:56.2]} 7... e5 {[%clk 0:02:57]} 8. Bd3 {[%clk
0:02:51.8]} 8... exd4 {[%clk 0:02:35.3]} 9. Nf3 {[%clk 0:02:47]} 9... Bg4 {[%clk
0:02:34.8]} 10. O-O {[%clk 0:02:23]} 10... Bxf3 {[%clk 0:02:18.4]} 11. gxf3
{[%clk 0:02:20.8]} 11... Be7 {[%clk 0:02:17.9]} 12. Be4 {[%clk 0:02:15.8]} 12...
Nc6 {[%clk 0:02:03.4]} 13. Rb1 {[%clk 0:02:11]} 13... O-O {[%clk 0:01:50.7]} 14.
Rxb7 {[%clk 0:02:01.6]} 14... Rad8 {[%clk 0:01:24.1]} 15. Rxc7 {[%clk
0:01:57.2]} 15... dxc3 {[%clk 0:01:06.9]} 16. Bd5 {[%clk 0:01:49.7]} 16... Ne5
{[%clk 0:00:38.9]} 17. f4 {[%clk 0:01:43.2]} 17... Bd6 {[%clk 0:00:29.6]} 18.
Rxa7 {[%clk 0:01:01.8]} 18... Nxc4 {[%clk 0:00:19.1]} 19. Bxc4 {[%clk
0:00:42.1]} 19... Qg6+ {[%clk 0:00:19.1]} 20. Kh1 {[%clk 0:00:37.6]} 20... Qe4+
{[%clk 0:00:19.7]} 21. Kg1 {[%clk 0:00:31.7]} 21... Qxc4 {[%clk 0:00:08.7]} 22.
Qf3 {[%clk 0:00:28.3]} 22... Bc5 {[%clk 0:00:07.2]} 23. Ra5 {[%clk 0:00:20.4]}
23... c2 {[%clk 0:00:03.8]} 24. Rxc5 {[%clk 0:00:13.7]} 24... Qxc5 {[%clk
0:00:03.6]} 25. Ba3 {[%clk 0:00:14.6]} 25... Qc4 {[%clk 0:00:02.5]} 26. Bxf8
{[%clk 0:00:15.5]} 26... Kxf8 {[%clk 0:00:01.5]} 27. Qa3+ {[%clk 0:00:06.7]} 1-0